bitfinex/quotes_ETHUSD_20251212
["timestamp","ask_amount","ask_price","bid_price","bid_amount"]
[1765564904965,5.24228866,3095.1,3095.0,0.002]
[1765564906992,3.81138866,3095.1,3095.0,0.002]
[1765564907196,0.452,3095.8,3095.0,0.4616]
[1765564907415,0.514,3095.7,3095.0,0.4616]
[1765564907856,0.514,3095.6,3095.1,0.1928]
[1765564908056,0.514,3095.6,3095.0,3.882]
[1765564908057,0.4649,3095.1,3095.0,3.882]
[1765564908262,0.9789,3095.1,3095.0,0.002]
[1765564908472,0.514,3095.1,3095.0,0.002]
[1765564908676,0.514,3095.1,3095.0,0.4616]
[1765564909194,0.58047529,3095.6,3095.0,0.9147]
[1765564909496,0.514,3095.5,3095.1,0.1928]
[1765564910498,0.4775,3095.4,3095.0,0.002]
[1765564910877,1.26950496,3095.5,3095.0,0.002]
[1765564911083,3.23060024,3095.4,3095.0,0.002]
[1765564911603,6.46120048,3095.4,3095.0,0.002]
[1765564911798,7.29231855,3095.4,3095.0,0.002]
[1765564912104,4.06171831,3095.4,3095.0,0.002]
[1765564912309,7.29231855,3095.4,3095.0,0.002]
[1765564912971,4.06171831,3095.4,3095.0,0.002]
[1765564913186,7.29231855,3095.4,3095.0,0.002]
[1765564913393,3.74453918,3095.5,3095.0,0.497]
[1765564915513,6.97507836,3095.5,3095.0,0.497]
[1765564915894,3.74453918,3095.5,3095.0,0.497]
[1765564917177,0.001,3097.1,3095.4,0.485]
[1765564917383,0.58047529,3096.0,3095.4,0.485]
[1765564917680,3.74407849,3095.9,3095.4,0.485]
[1765564918100,0.514,3095.9,3095.4,4.21055876]
[1765564918477,0.514,3095.9,3095.8,0.485]
[1765564918900,0.514,3095.9,3095.8,0.98]
[1765564919479,0.514,3095.9,3095.8,0.485]
[1765564920282,0.514,3095.9,3095.8,0.98]
[1765564920478,3.22951669,3096.5,3095.8,4.21017651]
[1765564920686,0.37070384,3096.5,3096.4,0.485]
[1765564920881,3.22893122,3097.0,3096.4,0.485]
[1765564921085,0.001,3097.1,3096.4,0.485]
[1765564921086,0.001,3097.1,3096.9,0.485]
[1765564921287,0.001,3097.1,3097.0,0.485]
[1765564921609,0.001,3097.1,3097.0,3.71393122]
[1765564921812,0.001,3097.1,3097.0,0.98]
[1765564923509,0.001,3097.1,3097.0,4.20893122]
[1765564923882,0.001,3097.1,3097.0,0.98]
[1765564925134,0.4832,3097.1,3096.3,0.1887]
[1765564925291,0.4832,3097.1,3096.3,0.6837]
[1765564925292,0.9607,3097.1,3096.3,0.6837]
[1765564926010,6.93536244,3097.0,3096.3,0.1887]
[1765564926314,0.74185624,3096.9,3096.3,0.1887]
[1765564926610,0.78315624,3096.9,3096.3,0.1887]
[1765564927597,0.001,3097.1,3096.8,0.485]
[1765564927808,0.001,3097.1,3096.4,0.53725924]
[1765564927809,0.001,3097.1,3097.0,0.485]
[1765564928108,0.001,3097.1,3096.4,0.495]
[1765564928703,0.001,3097.1,3096.4,3.72453178]
[1765564929101,0.001,3097.1,3096.4,0.495]
[1765564929288,0.001,3097.1,3096.6,3.22934188]
[1765564929516,0.001,3097.1,3096.7,3.22923546]
[1765564929718,0.001,3097.1,3096.4,0.04225924]
[1765564929925,0.001,3097.1,3096.6,0.495]
[1765564930094,0.6982381,3097.1,3096.6,0.495]
[1765564930510,0.6982381,3097.1,3096.4,3.27180628]
[1765564930816,0.6982381,3097.1,3096.4,0.495]
[1765564931016,0.001,3097.1,3097.0,0.485]
[1765564931610,0.001,3097.1,3096.7,0.495]
[1765564931919,0.001,3097.1,3096.5,3.22939232]
[1765564932587,0.001,3097.1,3096.5,3.72439232]
[1765564932792,0.001,3097.1,3096.6,0.495]
[1765564933318,0.001,3097.1,3097.0,0.485]
[1765564933721,0.001,3097.1,3097.0,0.98]
[1765564934593,0.001,3097.1,3097.0,4.20893122]
[1765564936523,0.001,3097.1,3097.0,0.98]
[1765564936736,0.001,3097.1,3097.0,4.20893122]
[1765564938327,0.001,3097.1,3097.0,4.95696402]
[1765564938512,0.001,3097.1,3097.0,5.47096402]
[1765564940233,0.001,3097.1,3097.0,0.9567]
[1765564940439,0.001,3097.1,3097.0,4.18563122]
[1765564943441,0.001,3097.1,3097.0,5.20389982]
[1765564943746,0.001,3097.1,3097.0,5.17161051]
[1765564944109,0.001,3098.1,3097.4,0.405504]
[1765564944310,0.001,3098.1,3098.0,0.50635924]
[1765564944611,0.001,3098.1,3098.0,4.7199482]
[1765564944824,0.001,3098.1,3098.0,5.19616894]
[1765564947636,0.001,3098.1,3098.0,5.77664423]
[1765564947937,0.001,3098.1,3098.0,0.94032074]
[1765564948151,0.001,3098.1,3098.0,0.4641]
[1765564948314,0.4987,3098.1,3097.6,0.51395924]
[1765564948639,0.4987,3098.1,3097.6,4.83670789]
[1765564949039,0.001,3098.1,3098.0,0.4641]
[1765564949344,0.001,3098.1,3098.0,0.9781]
[1765564949544,0.001,3098.1,3098.0,1.855304]
[1765564949735,0.001,3098.1,3098.0,2.10310785]
[1765564950445,0.001,3098.1,3098.0,5.33099681]
[1765564951239,0.001,3098.1,3098.0,5.9114721]
[1765564951634,0.001,3098.1,3098.0,1.80637914]
[1765564951836,0.4938,3098.1,3097.6,3.92225924]
[1765564952031,0.4938,3098.1,3097.8,0.04225924]
[1765564952344,0.4938,3098.1,3097.2,0.04225924]
[1765564952345,0.4787,3098.0,3097.2,0.04225924]
[1765564952543,0.0049,3097.8,3097.4,3.27070664]
[1765564952744,0.0049,3097.8,3097.4,3.98129778]
[1765564952944,0.0049,3097.8,3097.4,7.20981201]
[1765564953244,0.001,3098.1,3097.6,0.04225924]
[1765564953643,0.001,3098.1,3098.0,0.4641]
[1765564953852,0.001,3098.1,3098.0,0.97805924]
[1765564954013,0.001,3098.1,3098.0,1.38356324]
[1765564954430,0.001,3098.1,3098.0,5.19192749]
[1765564954636,0.001,3098.1,3098.0,6.0381458]
[1765564955038,0.001,3098.1,3098.0,14.32736018]
[1765564956444,0.1939,3099.5,3098.7,0.405504]
[1765564956631,3.42025476,3099.5,3099.0,0.04225924]
[1765564957013,0.4787,3099.9,3099.0,0.04225924]
[1765564957214,1.30606635,3099.9,3099.0,0.04225924]
[1765564957614,0.4787,3099.8,3099.2,0.04225924]
[1765564957821,0.6611,3100.1,3099.4,0.04225924]
[1765564958035,0.6611,3100.1,3099.6,0.04225924]
[1765564958286,0.4787,3100.6,3099.7,0.04225924]
[1765564958617,6.45057248,3100.5,3099.7,0.04225924]
[1765564958819,0.4787,3100.4,3099.7,0.04225924]
[1765564959545,0.4787,3100.4,3099.0,8.91194891]
[1765564959546,0.6753,3099.8,3099.0,0.04225924]
[1765564959745,0.0048,3099.5,3098.6,1.18883453]
[1765564959933,0.0048,3099.5,3098.7,0.514]
[1765564960143,0.0048,3099.5,3098.8,0.58047529]
[1765564960522,3.22643092,3099.4,3098.7,0.514]
[1765564960722,3.22643092,3099.4,3098.8,0.04225924]
[1765564960921,3.22643092,3099.4,3098.8,0.514]
[1765564961145,0.1939,3099.8,3098.7,0.55625924]
[1765564961451,0.4787,3099.4,3098.7,4.36382641]
[1765564961647,0.4787,3099.4,3098.7,0.55625924]
[1765564961853,0.4787,3099.4,3098.9,0.04225924]
[1765564962625,3.70516971,3099.4,3098.9,0.04225924]
[1765564963659,0.4814,3099.0,3098.8,0.513]
[1765564963866,0.4787,3099.3,3098.6,3.84991466]
[1765564964029,0.4787,3099.3,3098.8,0.04225924]
[1765564964230,3.22646971,3099.4,3098.8,0.04225924]
[1765564964647,0.4787,3099.5,3098.9,0.5]
[1765564964862,3.70504755,3099.5,3099.0,0.04225924]
[1765564965161,3.22611865,3099.7,3099.0,0.04225924]
[1765564965664,0.6726,3099.8,3099.4,0.04225924]
[1765564965665,3.41992063,3099.8,3099.4,0.04225924]
[1765564966033,0.4814,3099.5,3099.1,0.55525924]
[1765564967231,3.70781597,3099.5,3099.1,0.55525924]
[1765564967456,0.4814,3099.5,3098.9,3.26913742]
[1765564967655,0.4814,3099.5,3099.0,0.513]
[1765564967857,0.4814,3099.5,3099.1,0.04225924]
[1765564968061,0.4787,3099.7,3099.1,3.74067989]
[1765564968468,3.41991619,3099.8,3099.3,0.04225924]
[1765564968641,0.1939,3099.8,3099.4,0.04225924]
[1765564968840,3.41994851,3099.8,3099.1,3.74067989]
[1765564969034,3.41994851,3099.8,3099.3,0.04225924]
[1765564969365,0.1939,3099.8,3099.5,0.04225924]
[1765564969871,3.7045289,3100.0,3099.5,0.04225924]
[1765564970073,3.73969094,3100.2,3099.5,0.51395924]
[1765564970074,3.22574538,3100.1,3099.5,0.51395924]
[1765564970270,3.22563946,3100.2,3099.5,4.2198351]
[1765564970470,3.22563946,3100.2,3099.7,0.04225924]
[1765564970674,3.22553407,3100.3,3099.7,0.04225924]
[1765564971465,1.0067,3100.6,3099.7,0.04225924]
[1765564971466,6.45057248,3100.5,3099.7,0.04225924]
[1765564971664,0.4937,3100.4,3099.7,0.04225924]
[1765564971976,0.4937,3100.4,3099.9,0.04225924]
[1765564973299,0.4666,3100.0,3099.8,0.513]
[1765564973473,0.4666,3100.0,3099.7,0.513]
[1765564974151,0.4666,3100.0,3099.4,1.08047529]
[1765564974355,0.4666,3100.0,3099.4,0.54225924]
[1765564974557,0.1818,3099.9,3099.5,0.513]
[1765564974782,0.1818,3099.9,3099.5,3.7393235]
[1765564974975,0.6755,3099.9,3099.5,3.7393235]
[1765564975178,0.6755,3099.9,3099.4,0.5]
[1765564975179,0.4786,3099.6,3099.4,0.5]
[1765564975511,1.06562469,3099.9,3099.4,0.5]
[1765564975512,0.0048,3099.5,3099.4,0.5]
[1765564975792,0.4985,3099.5,3098.8,1.01765924]
[1765564976008,0.4985,3099.5,3099.1,0.04225924]
[1765564976355,3.72483693,3099.5,3098.9,0.04225924]
[1765564976587,0.4985,3099.5,3098.9,0.04225924]
[1765564976746,0.0048,3099.5,3099.1,0.04225924]
[1765564977182,3.72488846,3099.5,3098.9,0.04225924]
[1765564977814,3.72488846,3099.5,3098.9,3.26917705]
[1765564978316,0.0048,3099.5,3099.1,0.04225924]
[1765564978511,3.72485703,3099.5,3099.1,0.04225924]
[1765564978718,3.72485703,3099.5,3098.0,0.96908771]
[1765564978719,0.4739,3099.2,3098.0,0.96908771]
[1765564978892,13.39909791,3099.5,3098.6,3.22721127]
[1765564978893,4.23302682,3099.5,3098.6,3.22721127]
[1765564979215,0.4786,3098.7,3097.9,0.1842]
[1765564979514,0.4786,3098.7,3098.1,0.58047529]
[1765564979815,0.1818,3098.8,3098.3,0.58047529]
[1765564980007,0.1818,3099.0,3098.3,0.58047529]
[1765564980190,0.1818,3098.9,3098.3,0.58047529]
[1765564980380,0.1818,3098.9,3097.9,0.1842]
[1765564980381,0.4855,3098.4,3098.0,0.04225924]
[1765564980577,0.4855,3098.4,3098.2,0.04225924]
[1765564981011,0.4937,3098.7,3098.2,0.04225924]
[1765564981179,0.4937,3098.7,3098.4,0.04225924]
[1765564981380,0.1818,3098.9,3097.9,0.1842]
[1765564981585,0.4937,3098.6,3098.0,0.04225924]
[1765564981791,0.4937,3098.6,3098.2,0.04225924]
[1765564982208,0.4855,3098.3,3098.1,0.04225924]
[1765564982416,3.72097972,3098.6,3097.4,0.002]
[1765564982417,0.022,3098.0,3097.4,0.002]
[1765564982617,0.4855,3097.5,3097.4,0.002]
[1765564983149,0.9792,3097.5,3097.4,0.002]
[1765564983686,4.20761,3097.5,3097.4,0.002]
[1765564984031,4.95120057,3097.5,3097.4,0.002]
[1765564988508,0.4855,3097.5,3097.4,0.002]
[1765564989895,0.9792,3097.5,3097.4,0.002]
[1765564990092,0.4855,3097.5,3097.4,0.002]
[1765564990295,0.6948,3097.9,3097.4,0.4603]
[1765564990702,0.4855,3097.5,3097.4,0.002]
[1765564990904,1.4932,3097.5,3097.4,0.002]
[1765564992093,5.30208529,3097.5,3097.4,0.002]
[1765564992828,22.06811229,3097.5,3097.4,0.002]
[1765564993025,19.84632629,3097.4,3096.7,0.002]
[1765564993224,0.034,3096.8,3096.7,0.002]
[1765564993404,0.953504,3096.8,3096.4,0.002]
[1765564993611,0.953504,3096.8,3096.1,0.002]
[1765564993612,0.58047529,3096.4,3096.1,0.002]
[1765564993919,0.0364,3096.2,3096.1,0.002]
[1765564994100,3.26616551,3096.2,3096.1,0.002]
[1765564994302,4.56826449,3096.2,3096.1,0.002]
[1765564994501,5.08226449,3096.2,3096.1,0.002]
[1765565001904,5.66273978,3096.2,3096.1,0.002]
[1765565003347,1.35879898,3096.2,3096.1,0.002]
[1765565003517,0.514,3096.2,3096.1,0.002]
[1765565003715,3.40981629,3097.9,3096.1,0.002]
[1765565003716,6.45744542,3097.2,3096.1,1.1021]
[1765565004038,0.4642,3097.7,3096.1,1.1021]
[1765565004237,3.22841,3097.5,3096.3,6.4593224]
[1765565004435,0.514,3097.6,3096.3,6.4593224]
[1765565004610,4.78269359,3097.6,3096.4,1.15468224]
[1765565004807,7.88676713,3097.6,3096.4,1.15468224]
[1765565005134,0.4562,3097.5,3096.4,1.15468224]
[1765565005529,0.4562,3097.5,3096.5,0.4506]
[1765565006337,7.43056713,3097.6,3096.6,6.45869662]
[1765565006538,7.43056713,3097.6,3096.6,3.9894962]
[1765565006751,7.88676713,3097.6,3096.6,3.9894962]
[1765565006953,7.88676713,3097.6,3096.6,7.21884451]
[1765565006954,4.6584183,3097.6,3096.6,7.21884451]
[1765565007154,7.88676713,3097.6,3096.6,3.9894962]
[1765565007332,4.6584183,3097.6,3096.6,3.9894962]
[1765565007645,0.514,3097.6,3096.7,0.49285924]
[1765565008316,3.74233306,3097.6,3096.8,3.22913975]
[1765565008647,0.4562,3097.5,3096.7,3.22923629]
[1765565009010,0.4562,3097.5,3096.6,3.27160205]
[1765565009011,0.4562,3097.5,3096.5,0.4506]
[1765565009437,0.4562,3097.5,3096.6,3.22932284]
[1765565009636,0.4562,3097.5,3096.6,3.88]
[1765565009837,1.03667529,3097.5,3096.6,3.88]
[1765565010039,1.03667529,3097.5,3096.6,3.22927159]
[1765565010244,0.514,3097.4,3096.5,0.4506]
[1765565010414,3.22861847,3097.3,3096.6,3.22932826]
[1765565010712,3.22861847,3097.3,3096.6,3.92450158]
[1765565011108,3.22861847,3097.3,3096.6,0.69517332]
[1765565013544,6.91343694,3097.3,3096.4,3.22952685]
[1765565013719,3.68481847,3097.3,3096.5,3.22942694]
[1765565014242,6.45723694,3097.3,3096.4,3.22953448]
[1765565014415,0.4562,3097.2,3096.3,7.10964975]
[1765565014616,3.74254646,3097.4,3096.6,3.22934776]
[1765565014822,3.74254646,3097.4,3096.4,1.24888422]
[1765565014823,7.42729292,3097.4,3096.5,3.2294526]
[1765565015056,0.4562,3097.3,3096.5,3.2294526]
[1765565015357,0.4562,3097.3,3096.1,0.002]
[1765565015358,0.4615,3096.6,3096.1,0.002]
[1765565015528,0.5471,3096.5,3096.1,0.002]
[1765565015731,0.4578,3096.2,3096.1,0.002]
[1765565016035,0.9718,3096.2,3096.1,0.002]
[1765565016360,1.428,3096.2,3096.1,0.002]
[1765565016916,5.2382408,3096.2,3096.1,0.002]
[1765565017347,0.514,3096.2,3096.1,0.002]
[1765565017747,0.4562,3096.7,3096.1,0.4742]
[1765565017953,0.514,3096.6,3096.1,0.4742]
[1765565018332,0.9702,3096.6,3096.1,0.4742]
[1765565018650,0.9702,3096.6,3096.1,0.002]
[1765565019631,3.6856526,3096.5,3096.1,0.002]
[1765565019820,0.4615,3096.2,3096.1,0.002]
[1765565021057,0.41996526,3096.4,3096.1,0.002]
[1765565021753,4.10582413,3096.4,3096.1,0.002]
[1765565021919,0.4615,3096.2,3096.1,0.002]
[1765565022123,3.64962413,3096.4,3096.1,0.002]
[1765565023041,0.4615,3096.2,3096.1,0.002]
[1765565023247,0.9177,3096.2,3096.1,0.002]
[1765565023446,0.68790972,3096.3,3096.1,0.002]
[1765565024241,3.64962413,3096.4,3096.1,0.002]
[1765565024441,4.1057774,3096.4,3096.1,0.002]
[1765565025353,7.33538954,3096.4,3096.1,0.002]
[1765565025667,0.4615,3096.2,3096.1,0.002]
[1765565026162,0.9177,3096.2,3096.1,0.002]
[1765565026332,2.21138895,3096.2,3096.1,0.002]
[1765565027359,2.61689295,3096.2,3096.1,0.002]
[1765565027547,19.65152946,3096.2,3096.1,0.002]
[1765565027951,20.23200475,3096.2,3096.1,0.002]
[1765565028149,16.58015475,3096.2,3096.1,0.002]
[1765565028331,2.27786424,3096.2,3096.1,0.002]
[1765565028532,2.01217529,3096.2,3096.1,0.002]
[1765565029036,1.09447529,3096.2,3096.1,0.002]
[1765565029558,0.514,3096.2,3096.1,0.002]
[1765565029761,0.4562,3096.6,3096.1,0.4742]
[1765565029762,3.68561429,3096.6,3096.1,0.4742]
[1765565029932,1.46303672,3096.5,3096.1,0.002]
[1765565030133,1.91923672,3096.5,3096.1,0.002]
[1765565030453,1.93213672,3096.5,3096.1,0.002]
[1765565031256,1.46303672,3096.5,3096.1,0.002]
[1765565031442,0.46924526,3096.4,3096.1,0.1883]
[1765565031770,0.514,3096.5,3096.1,0.1883]
[1765565031959,4.2125574,3096.5,3096.1,0.002]
[1765565032331,0.9831,3096.5,3096.1,0.002]
[1765565032537,0.514,3096.5,3096.1,0.4837]
[1765565032732,0.514,3096.5,3096.1,3.71352093]
[1765565032956,4.21453021,3097.4,3096.1,3.71352093]
[1765565032957,0.514,3097.1,3096.4,0.4702]
[1765565033338,0.514,3097.1,3096.4,0.9519]
[1765565033668,0.514,3097.1,3096.4,4.18138966]
[1765565034440,0.514,3097.1,3096.5,0.4817]
[1765565034641,0.514,3097.1,3096.4,3.69968966]
[1765565034642,3.74285947,3097.1,3096.4,0.4702]
[1765565035271,4.95602625,3097.1,3096.4,3.69972233]
[1765565035464,0.9831,3097.1,3096.4,3.69972233]
[1765565036766,0.514,3097.1,3096.5,0.4817]
[1765565037067,0.514,3097.1,3097.0,0.4702]
[1765565037544,4.2778868,3097.6,3097.0,0.4702]
[1765565037746,1.26460985,3097.5,3096.4,6.45907923]
[1765565038071,3.22851423,3097.4,3096.6,3.22934831]
[1765565038865,0.4691,3097.3,3096.5,3.71110758]
[1765565039369,0.4691,3097.3,3096.1,0.55825924]
[1765565039370,0.4691,3097.3,3096.1,0.002]
[1765565039559,0.4691,3097.3,3096.2,0.514]
[1765565039749,0.69261285,3097.2,3096.2,0.514]
[1765565039951,0.514,3097.1,3096.2,3.74375792]
[1765565040151,3.22893122,3097.0,3096.2,3.22972965]
[1765565040351,0.4691,3096.9,3096.2,3.22972965]
[1765565040772,0.4691,3096.9,3096.1,0.002]
[1765565040773,0.4555,3096.3,3096.1,0.002]
[1765565041067,0.0841,3096.2,3096.1,0.002]
[1765565041267,0.5532,3096.2,3096.1,0.002]
[1765565041874,1.54840238,3096.2,3096.1,0.002]
[1765565042369,7.54600489,3096.2,3096.1,0.002]
[1765565042568,35.18367189,3096.2,3096.1,0.002]
[1765565042947,32.28630989,3096.2,3096.1,0.002]
[1765565043570,35.76414718,3096.2,3096.1,0.002]
[1765565043750,19.672107,3096.0,3095.1,0.002]
[1765565043956,0.6492,3095.2,3095.1,0.002]
[1765565044249,4.39400899,3095.2,3095.1,0.002]
[1765565044450,5.44358428,3095.2,3095.1,0.002]
[1765565046277,8.30434853,3095.9,3095.1,0.002]
[1765565046278,0.1975,3095.5,3095.1,0.002]
[1765565046485,0.4555,3095.2,3095.1,0.002]
[1765565046769,3.48408803,3095.2,3095.1,0.002]
[1765565048369,26.26943802,3095.2,3095.1,0.002]
[1765565048573,25.16703802,3095.2,3095.1,0.002]
[1765565048871,24.06156602,3095.2,3095.1,0.002]
[1765565049271,11.81799102,3095.2,3095.1,0.002]
[1765565049472,11.23130502,3095.2,3095.1,0.002]
[1765565052090,37.11339027,3095.2,3095.1,0.002]
[1765565052292,36.71489702,3095.2,3095.1,0.002]
[1765565053588,36.71489702,3095.2,3095.0,1e-08]
[1765565053589,31.50827929,3095.1,3095.0,1e-08]
[1765565053787,22.68777429,3094.6,3094.2,0.002]
[1765565053987,29.68065782,3094.6,3094.2,0.002]
[1765565054397,29.68065782,3094.6,3093.4,0.002]
[1765565054398,0.405504,3093.9,3093.7,1e-08]
[1765565054712,40.04752782,3093.8,3093.7,1e-08]
[1765565055164,40.51662782,3093.8,3093.7,1e-08]
[1765565055958,40.91512107,3093.8,3093.7,1e-08]
[1765565056160,0.405504,3093.3,3093.0,1e-08]
[1765565056384,42.9788303,3093.1,3093.0,1e-08]
[1765565056598,30.98597929,3093.0,3092.7,0.002]
[1765565056865,31.63897929,3092.8,3092.7,0.002]
[1765565057078,32.10807929,3092.8,3092.7,0.002]
[1765565057386,29.77659722,3092.8,3092.7,0.002]
[1765565057589,27.83659722,3092.8,3092.7,0.002]
[1765565058062,34.77310422,3092.8,3092.7,0.002]
[1765565058264,30.21710022,3092.8,3092.7,0.002]
[1765565058488,33.4504163,3092.8,3092.7,0.002]
[1765565059067,8.0064203,3092.8,3092.7,0.002]
[1765565059284,38.0064203,3092.8,3092.7,0.002]
[1765565061362,38.0064203,3092.8,3092.1,0.002]
[1765565061363,0.98597929,3092.7,3092.4,1e-08]
[1765565061569,0.98597929,3092.7,3091.6,0.002]
[1765565061570,30.405504,3091.9,3091.6,0.002]
[1765565061793,39.99693683,3091.7,3091.6,0.002]
[1765565062097,7.11544403,3091.7,3091.6,0.002]
[1765565062299,12.60764929,3091.7,3091.6,0.002]
[1765565062476,24.1718733,3091.7,3091.6,0.002]
[1765565063069,14.2037033,3091.7,3091.6,0.002]
[1765565063300,44.2037033,3091.7,3091.6,0.002]
[1765565063696,25.6945723,3091.7,3091.6,0.002]
[1765565063901,27.78208104,3091.7,3091.6,0.002]
[1765565064289,45.77721204,3091.7,3091.6,0.002]
[1765565064596,14.6061885,3091.7,3091.6,0.002]
[1765565065192,22.5154065,3091.7,3091.6,0.002]
[1765565065378,17.9820395,3091.7,3091.6,0.002]
[1765565066293,37.4474545,3091.7,3091.6,0.002]
[1765565066601,0.405504,3090.9,3090.3,0.1965]
[1765565066899,0.58047529,3090.7,3090.3,0.1965]
[1765565067079,7.990631,3091.1,3090.3,0.1965]
[1765565067279,0.514,3091.0,3090.7,0.4969]
[1765565067480,0.514,3090.9,3090.7,0.4969]
[1765565067896,0.514,3090.9,3090.8,0.4969]
[1765565068100,0.58047529,3091.0,3090.4,0.4713]
[1765565068284,1.57330893,3090.9,3090.4,0.4713]
[1765565068484,0.58047529,3090.7,3090.4,0.4713]
[1765565068684,0.58047529,3090.7,3090.6,0.4969]
[1765565069099,0.405504,3091.2,3090.6,0.4969]
[1765565069100,1.57350874,3091.7,3090.6,0.9682]
[1765565069288,1.57350874,3091.7,3091.2,0.042]
[1765565069289,0.98597929,3091.3,3091.2,0.042]
[1765565069496,0.405504,3091.4,3091.2,0.042]
[1765565069681,0.405504,3091.4,3091.2,0.5389]
[1765565070000,0.79701215,3091.4,3091.2,0.4969]
[1765565070200,0.79701215,3091.4,3091.1,0.042]
[1765565070201,3.23457109,3091.6,3091.3,0.9682]
[1765565070403,3.23457109,3091.6,3091.5,0.4969]
[1765565070610,0.515,3091.6,3091.5,0.4969]
[1765565070773,0.515,3091.6,3091.5,0.9682]
[1765565070978,6.46793368,3092.2,3091.5,0.9682]
[1765565071179,3.23394347,3092.2,3092.1,0.6934]
[1765565071384,3.74894347,3092.2,3092.1,0.6934]
[1765565071586,4.32941876,3092.2,3092.1,0.6934]
[1765565071785,0.515,3092.2,3092.1,1.1647]
[1765565072009,6.46684126,3092.7,3092.1,1.1647]
[1765565072183,0.515,3092.6,3092.2,0.4713]
[1765565072384,1.09547529,3092.6,3092.2,0.4713]
[1765565072585,6.46725948,3092.5,3092.2,0.4713]
[1765565073085,3.81410503,3092.5,3092.4,0.4969]
[1765565074287,4.32910503,3092.5,3092.4,0.4969]
[1765565075009,3.81410503,3092.5,3092.4,0.4969]
[1765565075217,13.92874829,3092.4,3090.3,0.7115]
[1765565075408,0.98597929,3092.4,3091.5,0.4713]
[1765565076896,0.58047529,3092.2,3091.5,0.4713]
[1765565077096,1.5431992,3092.1,3091.5,0.4713]
[1765565078196,0.515,3092.0,3091.5,0.4713]
[1765565078403,1.0281992,3092.1,3091.5,0.4713]
[1765565078609,1.0281992,3092.1,3091.9,0.4969]
[1765565078610,0.515,3092.0,3091.9,0.4969]
[1765565078790,0.72736745,3092.0,3091.9,0.4969]
[1765565078991,4.54199539,3092.0,3091.9,0.4969]
[1765565079205,4.54199539,3092.0,3091.1,0.042]
[1765565079206,0.58047529,3091.9,3091.1,0.042]
[1765565079410,0.58047529,3091.9,3091.2,0.4713]
[1765565080203,0.58047529,3091.9,3091.8,0.4969]
[1765565080412,1.46091001,3091.9,3091.8,0.4969]
[1765565080607,1.97591001,3091.9,3091.4,0.4713]
[1765565081318,6.46872372,3091.8,3091.4,0.4713]
[1765565081692,0.515,3091.7,3091.4,0.4713]
[1765565082092,0.515,3091.7,3091.6,0.4969]
[1765565082699,6.46872372,3091.8,3091.6,0.4969]
[1765565082924,1.65617466,3094.6,3091.7,0.4969]
[1765565082925,0.405504,3092.4,3091.7,0.4969]
[1765565083095,0.405504,3092.4,3091.6,0.4713]
[1765565083096,0.58047529,3092.2,3091.8,0.4969]
[1765565083292,1.0796992,3092.1,3091.8,0.4969]
[1765565083493,0.58047529,3091.9,3091.4,0.4713]
[1765565083688,0.515,3091.8,3091.4,0.4713]
[1765565083923,3.23342432,3092.7,3091.8,6.46868817]
[1765565084127,3.23342432,3092.7,3091.4,0.4713]
[1765565084128,0.515,3092.5,3092.3,0.1891]
[1765565084421,0.515,3092.8,3092.3,0.1891]
[1765565084720,0.515,3092.8,3092.4,0.4969]
[1765565085016,0.515,3092.8,3092.3,0.6604]
[1765565085220,0.515,3092.8,3092.4,0.4713]
[1765565085621,0.58047529,3092.6,3092.3,0.1891]
[1765565085817,1.33670694,3092.6,3092.3,0.6604]
[1765565086021,1.33670694,3092.6,3092.3,0.1891]
[1765565086319,1.33670694,3092.6,3091.8,0.4713]
[1765565086522,0.4819,3092.4,3091.2,0.4713]
[1765565086818,0.4819,3092.4,3091.1,0.042]
[1765565086819,0.515,3092.3,3091.3,0.4713]
[1765565087522,0.58047529,3092.1,3091.3,0.4713]
[1765565087723,1.02823057,3092.0,3091.3,0.4713]
[1765565087919,0.515,3091.9,3091.3,0.4713]
[1765565088426,0.515,3091.9,3091.8,0.4969]
[1765565089817,4.32973254,3091.9,3091.8,0.4969]
[1765565091033,0.58047529,3091.8,3091.3,0.4894]
[1765565091436,1.43969733,3091.8,3091.3,0.4894]
[1765565091734,1.43969733,3091.8,3091.1,0.042]
[1765565091916,6.46893294,3091.7,3091.1,0.042]
[1765565092415,6.46893294,3091.7,3091.1,0.5314]
[1765565092615,9.70339941,3091.7,3091.1,0.042]
[1765565092807,1.69478496,3091.6,3090.8,0.4894]
[1765565093137,0.515,3091.5,3090.8,0.4894]
[1765565093308,0.405504,3091.4,3090.3,0.1985]
[1765565093507,0.881404,3091.4,3090.4,0.4894]
[1765565093734,0.93602819,3091.3,3090.4,0.4894]
[1765565093917,0.58047529,3091.1,3090.4,0.4894]
[1765565094507,0.58047529,3091.1,3091.0,0.4706]
[1765565094703,0.58047529,3091.1,3090.4,0.4894]
[1765565094936,0.58047529,3091.1,3091.0,0.4706]
[1765565095706,1.52477529,3091.1,3090.3,0.1985]
[1765565095959,10.8800713,3091.0,3090.3,0.1985]
[1765565096233,10.8800713,3091.0,3090.3,0.6879]
[1765565096637,0.58047529,3090.9,3090.3,0.6879]
[1765565096806,0.515,3090.8,3090.3,0.6879]
[1765565097011,0.515,3090.8,3090.3,0.1985]
[1765565097647,0.515,3090.8,3090.3,0.6879]
[1765565097833,0.58047529,3090.6,3090.3,0.6879]
[1765565098043,0.515,3090.5,3090.4,0.4894]
[1765565098424,0.515,3090.5,3090.4,0.96]
[1765565098619,0.515,3090.5,3090.4,0.4706]
[1765565098949,0.515,3090.5,3090.3,0.002]
[1765565098950,0.94809883,3090.5,3090.3,0.002]